fUST/lending_fUST_20250103
["ID","MTS","AMOUNT","RATE_DAILY","PERIOD"]
[347475794,1735851046851,-151.0,0.00020786,2]
[347475795,1735851046860,-500.0,0.00020788,3]
[347475796,1735851046870,-1441.47313,0.00020789,2]
[347475797,1735851046879,-1441.47313,0.00020789,2]
[347475798,1735851046889,-151.0,0.00020789,2]
[347475799,1735851046898,-566.016629,0.00020789,2]
[347475800,1735851046907,-566.016629,0.00020789,2]
[347475801,1735851046916,-500.0,0.00020789,3]
[347475802,1735851046925,-25722.71962112,0.0002079,2]
[347475803,1735851046935,-1000.543658,0.0002079,2]
[347475804,1735851046947,-1000.543658,0.0002079,2]
[347475805,1735851046956,-151.0,0.0002079,2]
[347475806,1735851046965,-500.0,0.0002082,3]
[347475807,1735851046974,-500.0,0.0002082,3]
[347475808,1735851046985,-500.0,0.0002082,3]
[347475809,1735851046995,-500.0,0.00020821,3]
[347475810,1735851047004,-150.06,0.00020821,3]
[347475811,1735851047014,-156.32955311,0.00020821,3]
[347475812,1735851047023,-150.06,0.00020821,3]
[347475813,1735851047033,-500.0,0.00020821,3]
[347475814,1735851047042,-201.84855809,0.00020821,3]
[347475815,1735851047051,-500.0,0.00020821,3]
[347475816,1735851047060,-500.0,0.00020821,3]
[347475817,1735851047069,-500.0,0.00020821,3]
[347475818,1735851047078,-500.0,0.00020821,3]
[347475819,1735851047087,-551.26538223,0.00020821,3]
[347475820,1735851047096,-206.92935829,0.00020821,3]
[347475821,1735851047106,-345.712151,0.00020821,2]
[347475822,1735851047115,-151.0,0.00020821,2]
[347475823,1735851047124,-4921.59023,0.00020821,2]
[347475824,1735851047133,-4921.59023,0.00020821,2]
[347475825,1735851047143,-713.14,0.00020821,3]
[347475826,1735851047152,-500.0,0.00020821,3]
[347475827,1735851047161,-500.0,0.00020821,3]
[347475828,1735851047170,-641.91,0.00020821,3]
[347475829,1735851047180,-500.0,0.00020821,3]
[347475830,1735851047189,-500.0,0.00020821,3]
[347475831,1735851047198,-1205.270441,0.00020821,2]
[347475832,1735851047207,-1205.270441,0.00020821,2]
[347475833,1735851047216,-151.0,0.00020821,2]
[347475834,1735851047225,-500.0,0.00020821,3]
[347475835,1735851047235,-1904.842293,0.00020821,2]
[347475836,1735851047244,-1904.842293,0.00020821,2]
[347475837,1735851047254,-536.97,0.00020821,3]
[347475838,1735851047263,-257.934507,0.00020821,2]
[347475839,1735851047272,-500.0,0.00020821,3]
[347475840,1735851047281,-14335.29,0.00020821,3]
[347475841,1735851047290,-1213.81,0.00020821,3]
[347475842,1735851047299,-151.0,0.00020821,2]
[347475843,1735851047308,-151.0,0.00020821,2]
[347475844,1735851047318,-300.530763,0.00020821,2]
[347475845,1735851047327,-626.39802821,0.00020821,3]
[347475846,1735851047336,-3453.29,0.00020821,3]
[347475847,1735851047346,-795.087862,0.00020821,2]
[347475848,1735851047355,-156.840064,0.00020821,2]
[347475849,1735851047364,-795.087862,0.00020821,2]
[347475850,1735851047373,-683.2,0.00020821,3]
[347475851,1735851047382,-1552.34,0.00020821,3]
[347475852,1735851047391,-633.84,0.00020821,3]
[347475853,1735851047400,-500.0,0.00020821,3]
[347475854,1735851047409,-500.0,0.00020821,3]
[347475855,1735851047419,-1157.271128,0.00020821,2]
[347475856,1735851047428,-1157.271128,0.00020821,2]
[347475857,1735851047437,-548.78,0.00020821,3]
[347475858,1735851047446,-631.51,0.00020821,2]
[347475859,1735851047455,-967.16,0.00020821,3]
[347475860,1735851047464,-2884.33,0.00020821,3]
[347475861,1735851047473,-643.02,0.00020821,3]
[347475862,1735851047483,-500.0,0.00020821,3]
[347475863,1735851047493,-151.0,0.00020821,2]
[347475864,1735851047502,-500.0,0.00020821,3]
[347475865,1735851047512,-566.68,0.00020821,3]
[347475866,1735851047521,-1039.17,0.00020821,3]
[347475867,1735851047531,-500.0,0.00020821,3]
[347475868,1735851047539,-3385.58,0.00020821,3]
[347475869,1735851047647,-1666.93,0.00020821,3]
[347475870,1735851047657,-500.0,0.00020821,3]
[347475871,1735851047667,-174.20131226,0.00020821,3]
[347475872,1735851047678,-151.0,0.00020821,2]
[347475874,1735851047687,-293.496054,0.00020821,2]
[347475876,1735851047697,-293.496054,0.00020821,2]
[347475878,1735851047706,-151.0,0.00020821,2]
[347475880,1735851047715,-1173.72,0.00020821,3]
[347475881,1735851047724,-151.0,0.00020821,2]
[347475883,1735851047734,-293.496054,0.00020821,2]
[347475884,1735851047743,-293.496054,0.00020821,2]
[347475885,1735851047752,-513.23,0.00020821,3]
[347475886,1735851047762,-151.0,0.00020821,2]
[347475887,1735851047771,-2064.1,0.00020821,3]
[347475888,1735851047780,-500.0,0.00020821,3]
[347475889,1735851047790,-500.0,0.00020821,3]
[347475890,1735851047799,-500.0,0.00020821,3]
[347475891,1735851047808,-7372.5684906,0.00020831,2]
[347475892,1735851047817,-500.0,0.00020846,3]
[347475893,1735851047826,-500.0,0.00020846,3]
[347475894,1735851047835,-160.0,0.00020846,2]
[347475895,1735851047844,-151.0,0.00020847,2]
[347475896,1735851047853,-151.0,0.00020847,2]
[347475897,1735851047863,-151.0,0.00020847,2]
[347475898,1735851047872,-151.0,0.00020847,2]
[347475899,1735851047880,-151.0,0.00020847,2]
[347475900,1735851047890,-151.0,0.00020847,2]
[347475901,1735851047899,-151.0,0.00020847,2]
[347475902,1735851047908,-151.0,0.00020847,2]
[347475903,1735851047917,-151.0,0.00020847,2]
[347475904,1735851047926,-151.0,0.00020847,2]
[347475905,1735851047937,-151.0,0.00020847,2]
[347475906,1735851047947,-2290.830262,0.00020847,2]
[347475907,1735851047956,-2290.830262,0.00020847,2]
[347475908,1735851047966,-1441.47313,0.00020847,2]
[347475909,1735851047976,-1441.47313,0.00020847,2]
[347475911,1735851047987,-1441.47313,0.00020847,2]
[347475912,1735851047997,-1441.47313,0.00020847,2]
[347475914,1735851048006,-151.0,0.00020847,2]
[347475915,1735851048017,-151.0,0.00020847,2]
[347475917,1735851048026,-151.0,0.00020847,2]
[347475918,1735851048035,-151.0,0.00020847,2]
[347475919,1735851048045,-257.717704,0.00020847,2]
[347475921,1735851048054,-257.717704,0.00020847,2]
[347475922,1735851048063,-257.717704,0.00020847,2]
[347475924,1735851048073,-257.717704,0.00020847,2]
[347475925,1735851048082,-151.0,0.00020847,2]
[347475926,1735851048092,-151.0,0.00020847,2]
[347475927,1735851048101,-151.0,0.00020847,2]
[347475928,1735851048111,-151.0,0.00020847,2]
[347475929,1735851048121,-304.159792,0.00020847,2]
[347475930,1735851048129,-304.159792,0.00020847,2]
[347475931,1735851048139,-566.016629,0.00020847,2]
[347475932,1735851048148,-566.016629,0.00020847,2]
[347475933,1735851048158,-566.016629,0.00020847,2]
[347475934,1735851048171,-566.016629,0.00020847,2]
[347475935,1735851048180,-1078.172367,0.00020847,2]
[347475936,1735851048190,-1078.172367,0.00020847,2]
[347475937,1735851048199,-189.287417,0.00020847,2]
[347475938,1735851048208,-491.556627,0.00020847,2]
[347475939,1735851048217,-189.287417,0.00020847,2]
[347475940,1735851048226,-491.556627,0.00020847,2]
[347475941,1735851048236,-500.0,0.00020873,2]
[347475942,1735851048245,-151.0,0.00020887,2]
[347475943,1735851048254,-196.89549,0.00020887,2]
[347475944,1735851048264,-500.0,0.00020899,3]
[347475945,1735851048273,-500.0,0.00020899,3]
[347475946,1735851048282,-160.0,0.00020899,2]
[347475947,1735851048295,-16433.82,0.000209,2]
[347475948,1735851048304,-4927.17,0.000209,2]
[347475949,1735851048313,-151.0,0.000209,2]
[347475950,1735851048323,-151.0,0.000209,2]
[347475951,1735851048332,-151.0,0.000209,2]
[347475952,1735851048342,-151.0,0.000209,2]
[347475953,1735851048352,-151.0,0.000209,2]
[347475954,1735851048361,-151.0,0.000209,2]
[347475955,1735851048370,-151.0,0.000209,2]
[347475956,1735851048379,-151.0,0.000209,2]
[347475957,1735851048388,-180.293254,0.000209,2]
[347475958,1735851048398,-180.293254,0.000209,2]
[347475959,1735851048407,-151.0,0.000209,2]
[347475960,1735851048416,-151.0,0.000209,2]
[347475961,1735851048426,-153.05,0.000209,2]
[347475962,1735851048435,-151.0,0.000209,3]
[347475963,1735851048445,-1000.543658,0.000209,2]
[347475964,1735851048455,-1000.543658,0.000209,2]
[347475965,1735851048464,-1157.271128,0.000209,2]
[347475966,1735851048473,-1157.271128,0.000209,2]
[347475967,1735851048483,-151.0,0.000209,2]
[347475968,1735851048493,-293.496054,0.000209,2]
[347475969,1735851048502,-151.0,0.000209,2]
[347475970,1735851048512,-293.496054,0.000209,2]
[347475971,1735851048521,-180.396715,0.00020904,2]
[347475972,1735851048530,-7372.5684906,0.00020934,2]
[347475973,1735851048539,-153.0,0.00020959,2]
[347475974,1735851048549,-153.0,0.00020959,2]
[347475975,1735851048559,-153.0,0.00020959,2]
[347475976,1735851048568,-153.0,0.00020959,2]
[347475977,1735851048578,-153.0,0.00020959,2]
[347475978,1735851048587,-306.0,0.00020959,2]
[347475979,1735851048596,-214.4778337,0.00020986,2]
[347475980,1735851048606,-153.0,0.00020986,2]
[347475981,1735851048614,-153.6137553,0.00020986,2]
[347475982,1735851048624,-153.0,0.00020986,2]
[347475983,1735851048633,-153.0,0.00020986,2]
[347475984,1735851048643,-153.0,0.00020986,2]
[347475985,1735851048652,-312.7757554,0.00020986,2]
[347475986,1735851048662,-946.83120577,0.00020995,2]
[347475987,1735851048672,-160.0,0.00020999,2]
[347475988,1735851048681,-500.0,0.00020999,3]
[347475989,1735851048691,-500.0,0.00020999,3]
[347475990,1735851048700,-247.04,0.00020999,3]
[347475991,1735851048710,-20000.0,0.00021,2]
[347475992,1735851048720,-1000.0,0.00021,21]
[347475993,1735851048729,-2000.0,0.00021,6]
[347475994,1735851048741,-151.0,0.00021,2]
[347475995,1735851048751,-3000.0,0.00021,2]
[347475996,1735851048760,-151.0,0.00021,2]
[347475997,1735851048770,-151.0,0.00021,2]
[347475998,1735851048779,-4921.59023,0.00021,2]
[347475999,1735851048789,-4921.59023,0.00021,2]
[347476000,1735851048798,-4921.59023,0.00021,2]
[347476001,1735851048808,-4921.59023,0.00021,2]
[347476002,1735851048818,-2290.830262,0.00021,2]
[347476003,1735851048828,-2290.830262,0.00021,2]
[347476004,1735851048837,-1078.172367,0.00021,2]
[347476005,1735851048847,-1078.172367,0.00021,2]
[347476006,1735851048856,-491.556627,0.00021,2]
[347476007,1735851048865,-491.556627,0.00021,2]
[347476008,1735851048875,-1205.270441,0.00021,2]
[347476009,1735851048884,-1205.270441,0.00021,2]
[347476010,1735851048893,-151.0,0.00021,2]
[347476011,1735851048902,-1904.842293,0.00021,2]
[347476012,1735851048911,-1904.842293,0.00021,2]
[347476013,1735851048920,-151.0,0.00021,2]
[347476014,1735851048930,-151.0,0.00021,2]
[347476015,1735851048942,-795.087862,0.00021,2]
[347476016,1735851048951,-795.087862,0.00021,2]
[347476017,1735851048961,-1157.271128,0.00021,2]
[347476018,1735851048970,-1157.271128,0.00021,2]
[347476019,1735851048979,-151.0,0.00021,2]
[347476020,1735851048990,-151.0,0.00021,2]
[347476021,1735851049000,-151.0,0.00021,2]
[347476022,1735851049009,-151.0,0.00021005,2]
[347476023,1735851049020,-257.717704,0.00021005,2]
[347476024,1735851049030,-257.717704,0.00021005,2]
[347476025,1735851049039,-151.0,0.00021005,2]
[347476026,1735851049049,-284.794078,0.00021005,2]
[347476027,1735851049059,-304.159792,0.00021005,2]
[347476028,1735851049068,-304.159792,0.00021005,2]
[347476029,1735851049078,-361.738629,0.00021005,2]
[347476030,1735851049087,-361.738629,0.00021005,2]
[347476031,1735851049096,-189.287417,0.00021005,2]
[347476032,1735851049106,-189.287417,0.00021005,2]
[347476033,1735851049115,-3000.0,0.0002101,2]
[347476034,1735851049125,-1441.47313,0.0002101,2]
[347476035,1735851049135,-1441.47313,0.0002101,2]
[347476036,1735851049144,-151.0,0.0002101,2]
[347476037,1735851049154,-566.016629,0.0002101,2]
[347476038,1735851049163,-566.016629,0.0002101,2]
[347476039,1735851049173,-3000.0,0.0002102,2]
[347476040,1735851049182,-151.0,0.0002102,2]
[347476041,1735851049191,-3000.0,0.0002103,2]
[347476042,1735851049201,-151.0,0.0002103,2]
[347476043,1735851049210,-151.0,0.0002103,2]
[347476044,1735851049220,-7372.5684906,0.00021038,2]
[347476045,1735851049230,-3000.0,0.0002104,2]
[347476046,1735851049240,-3000.0,0.0002105,2]
[347476047,1735851049249,-3000.0,0.0002106,2]
[347476048,1735851049259,-3000.0,0.0002107,2]
[347476049,1735851049268,-151.0,0.0002107,2]
[347476050,1735851049277,-151.0,0.0002107,2]
[347476051,1735851049287,-4661.754535,0.0002108,2]
[347476052,1735851049297,-641.14818,0.0002108,2]
[347476053,1735851049307,-641.14818,0.0002108,2]
[347476054,1735851049316,-992.106506,0.0002108,2]
[347476055,1735851049326,-151.0,0.0002108,2]
[347476056,1735851049336,-992.106506,0.0002108,2]
[347476057,1735851049346,-151.0,0.0002108,2]
[347476058,1735851049356,-669.228697,0.0002108,2]
[347476059,1735851049365,-669.228697,0.0002108,2]
[347476060,1735851049375,-370.073377,0.0002108,2]
[347476061,1735851049384,-370.073377,0.0002108,2]
[347476062,1735851049393,-293.496054,0.0002108,2]
[347476063,1735851049402,-293.496054,0.0002108,2]
[347476064,1735851049412,-160.43041261,0.00021094,2]
[347476065,1735851049421,-797.6229317,0.00021095,3]
[347476066,1735851049430,-150.06,0.00021095,3]
[347476067,1735851049440,-150.06,0.00021095,3]
[347476068,1735851049449,-658.26747171,0.00021095,3]
[347476069,1735851049458,-836.51919679,0.00021095,3]
[347476070,1735851049468,-500.0,0.00021095,3]
[347476071,1735851049477,-500.0,0.00021095,3]
[347476072,1735851049487,-529.32399413,0.00021095,3]
[347476073,1735851049497,-345.712151,0.00021095,2]
[347476074,1735851049506,-180.293254,0.00021095,2]
[347476075,1735851049516,-180.293254,0.00021095,2]
[347476076,1735851049525,-151.0,0.00021095,2]
[347476077,1735851049535,-151.0,0.00021095,2]
[347476078,1735851049630,-182.583528,0.00021095,2]
[347476079,1735851049641,-4921.59023,0.00021095,2]
[347476080,1735851049651,-4921.59023,0.00021095,2]
[347476081,1735851049661,-2290.830262,0.00021095,2]
[347476082,1735851049671,-2290.830262,0.00021095,2]
[347476083,1735851049681,-1000.543658,0.00021095,2]
[347476084,1735851049690,-1000.543658,0.00021095,2]
[347476085,1735851049700,-256.895038,0.00021095,2]
[347476086,1735851049710,-256.895038,0.00021095,2]
[347476087,1735851049720,-713.14,0.00021095,3]
[347476088,1735851049729,-1078.172367,0.00021095,2]
[347476089,1735851049739,-1078.172367,0.00021095,2]
[347476090,1735851049750,-151.0,0.00021095,2]
[347476091,1735851049759,-491.556627,0.00021095,2]
[347476092,1735851049769,-491.556627,0.00021095,2]
[347476093,1735851049778,-500.0,0.00021095,3]
[347476094,1735851049787,-500.0,0.00021095,3]
[347476095,1735851049797,-641.91,0.00021095,3]
[347476096,1735851049806,-500.0,0.00021095,3]
[347476097,1735851049816,-500.0,0.00021095,3]
[347476098,1735851049825,-1205.270441,0.00021095,2]
[347476099,1735851049835,-1205.270441,0.00021095,2]
[347476100,1735851049846,-172.068991,0.00021095,2]
[347476101,1735851049857,-500.0,0.00021095,3]
[347476102,1735851049866,-1904.842293,0.00021095,2]
[347476103,1735851049876,-1904.842293,0.00021095,2]
[347476104,1735851049886,-536.97,0.00021095,3]
[347476105,1735851049896,-500.0,0.00021095,3]
[347476106,1735851049906,-14335.29,0.00021095,3]
[347476107,1735851049916,-1213.81,0.00021095,3]
[347476108,1735851049926,-151.0,0.00021095,2]
[347476109,1735851049937,-151.0,0.00021095,2]
[347476110,1735851049949,-3453.29,0.00021095,3]
[347476111,1735851049958,-795.087862,0.00021095,2]
[347476112,1735851049968,-795.087862,0.00021095,2]
[347476113,1735851049977,-683.2,0.00021095,3]
[347476114,1735851049990,-1552.34,0.00021095,3]
[347476115,1735851049999,-633.84,0.00021095,3]
[347476116,1735851050009,-500.0,0.00021095,3]
[347476117,1735851050019,-500.0,0.00021095,3]
[347476118,1735851050028,-1157.271128,0.00021095,2]
[347476119,1735851050038,-1157.271128,0.00021095,2]
[347476120,1735851050047,-548.78,0.00021095,3]
[347476121,1735851050057,-631.51,0.00021095,2]
[347476122,1735851050066,-967.16,0.00021095,3]
[347476123,1735851050075,-2884.33,0.00021095,3]
[347476124,1735851050085,-643.02,0.00021095,3]
[347476125,1735851050094,-500.0,0.00021095,3]
[347476126,1735851050104,-151.0,0.00021095,2]
[347476127,1735851050114,-500.0,0.00021095,3]
[347476128,1735851050124,-566.68,0.00021095,3]
[347476129,1735851050133,-1039.17,0.00021095,3]
[347476130,1735851050143,-500.0,0.00021095,3]
[347476131,1735851050152,-3385.58,0.00021095,3]
[347476132,1735851050161,-1666.93,0.00021095,3]
[347476133,1735851050170,-500.0,0.00021095,3]
[347476134,1735851050179,-1173.72,0.00021095,3]
[347476135,1735851050188,-151.0,0.00021095,2]
[347476136,1735851050198,-513.23,0.00021095,3]
[347476137,1735851050207,-151.0,0.00021095,2]
[347476138,1735851050217,-2064.1,0.00021095,3]
[347476139,1735851050226,-437.29,0.00021095,3]
[347476140,1735851050240,-500.0,0.00021095,3]
[347476141,1735851050249,-500.0,0.00021095,3]
[347476142,1735851050258,-180.396715,0.00021096,2]
[347476143,1735851050267,-151.0,0.000211,3]
[347476144,1735851050276,-164.903458,0.0002111,2]
[347476145,1735851050286,-164.903458,0.0002111,2]
[347476146,1735851050295,-248.604275,0.0002111,2]
[347476147,1735851050305,-248.604275,0.0002111,2]
[347476148,1735851050314,-7372.5684906,0.00021141,2]
[347476149,1735851050323,-1441.47313,0.00021163,2]
[347476150,1735851050333,-1441.47313,0.00021163,2]
[347476151,1735851050342,-172.247392,0.00021163,2]
[347476152,1735851050351,-156.612358,0.00021163,2]
[347476153,1735851050360,-257.717704,0.00021163,2]
[347476154,1735851050370,-257.717704,0.00021163,2]
[347476155,1735851050379,-151.0,0.00021163,2]
[347476156,1735851050389,-304.159792,0.00021163,2]
[347476157,1735851050398,-304.159792,0.00021163,2]
[347476158,1735851050408,-566.016629,0.00021163,2]
[347476159,1735851050417,-566.016629,0.00021163,2]
[347476160,1735851050426,-361.738629,0.00021163,2]
[347476161,1735851050435,-361.738629,0.00021163,2]
[347476162,1735851050445,-189.287417,0.00021163,2]
[347476163,1735851050454,-189.287417,0.00021163,2]
[347476164,1735851050464,-946.83120575,0.00021167,2]
[347476165,1735851050473,-161.0,0.00021235,2]
[347476166,1735851050482,-161.0,0.00021235,2]
[347476167,1735851050492,-161.0,0.00021235,2]
[347476168,1735851050502,-161.0,0.00021235,2]
[347476169,1735851050512,-161.0,0.00021235,2]
[347476170,1735851050520,-161.0,0.00021235,2]
[347476171,1735851050530,-161.0,0.00021235,2]
[347476172,1735851050539,-161.0,0.00021235,2]
[347476173,1735851050549,-161.0,0.00021235,2]
[347476174,1735851050558,-161.0,0.00021235,2]
[347476175,1735851050569,-163.47,0.00021235,2]
[347476176,1735851050578,-250.569,0.00021238,2]
[347476177,1735851050587,-534.0,0.00021238,2]
[347476178,1735851050597,-2087.0,0.00021238,2]
[347476179,1735851050607,-2322.0,0.00021238,2]
[347476180,1735851050616,-493.462,0.00021238,2]
[347476181,1735851050626,-150.0,0.00021238,2]
[347476182,1735851050635,-151.601,0.00021238,2]
[347476183,1735851050644,-7372.5684906,0.00021245,2]
[347476184,1735851050654,-151.0,0.00021245,2]
[347476185,1735851050663,-151.0,0.00021245,2]
[347476186,1735851050673,-465.03474211,0.00021271,2]
[347476187,1735851050682,-197.0,0.00021278,2]
[347476188,1735851050691,-180.396715,0.00021288,2]
[347476189,1735851050700,-151.0,0.000213,3]
[347476190,1735851050709,-151.0,0.00021321,2]
[347476191,1735851050719,-151.0,0.00021321,2]
[347476192,1735851050728,-946.83120575,0.00021339,2]
[347476193,1735851050738,-293.496054,0.00021348,2]
[347476194,1735851050747,-293.496054,0.00021348,2]
[347476195,1735851050756,-7372.5684906,0.00021348,2]
[347476196,1735851050765,-641.14818,0.00021368,2]
[347476197,1735851050775,-641.14818,0.00021368,2]
[347476198,1735851050784,-992.106506,0.00021368,2]
[347476199,1735851050793,-151.0,0.00021368,2]
[347476200,1735851050803,-992.106506,0.00021368,2]
[347476201,1735851050812,-151.0,0.00021368,2]
[347476202,1735851050822,-669.228697,0.00021368,2]
[347476203,1735851050831,-669.228697,0.00021368,2]
[347476204,1735851050840,-370.073377,0.00021368,2]
[347476205,1735851050849,-370.073377,0.00021368,2]
[347476206,1735851050859,-150.06,0.00021369,3]
[347476207,1735851050868,-221.33909851,0.00021369,3]
[347476208,1735851050878,-500.0,0.00021369,3]
[347476209,1735851050888,-500.0,0.00021369,3]
[347476210,1735851050898,-151.0,0.00021369,2]
[347476211,1735851050907,-164.903458,0.00021369,2]
[347476212,1735851050916,-164.903458,0.00021369,2]
[347476213,1735851050929,-151.0,0.00021369,2]
[347476214,1735851050942,-248.604275,0.00021369,2]
[347476215,1735851050954,-248.604275,0.00021369,2]
[347476216,1735851050963,-151.0,0.00021369,2]
[347476217,1735851050972,-165.15366,0.00021369,2]
[347476218,1735851050983,-151.0,0.00021369,2]
[347476219,1735851050994,-151.0,0.00021369,2]
[347476220,1735851051004,-151.0,0.00021369,2]
[347476221,1735851051014,-286.14543,0.00021369,2]
[347476222,1735851051024,-151.0,0.00021369,2]
[347476223,1735851051034,-151.0,0.00021369,2]
[347476224,1735851051043,-166.922029,0.00021369,2]
[347476225,1735851051053,-4921.59023,0.00021369,2]
[347476226,1735851051062,-4921.59023,0.00021369,2]
[347476227,1735851051071,-1000.543658,0.00021369,2]
[347476228,1735851051080,-1000.543658,0.00021369,2]
[347476229,1735851051090,-256.895038,0.00021369,2]
[347476230,1735851051100,-256.895038,0.00021369,2]
[347476231,1735851051110,-713.14,0.00021369,3]
[347476232,1735851051119,-1078.172367,0.00021369,2]
[347476233,1735851051128,-1078.172367,0.00021369,2]
[347476234,1735851051137,-151.0,0.00021369,2]
[347476235,1735851051147,-491.556627,0.00021369,2]
[347476236,1735851051156,-491.556627,0.00021369,2]
[347476237,1735851051166,-500.0,0.00021369,3]
[347476238,1735851051175,-251.34740292,0.00021369,3]
[347476239,1735851051186,-641.91,0.00021369,3]
[347476240,1735851051197,-500.0,0.00021369,3]
[347476241,1735851051206,-500.0,0.00021369,3]
[347476242,1735851051216,-1205.270441,0.00021369,2]
[347476243,1735851051225,-1205.270441,0.00021369,2]
[347476244,1735851051234,-500.0,0.00021369,3]
[347476245,1735851051246,-1904.842293,0.00021369,2]
[347476246,1735851051255,-1904.842293,0.00021369,2]
[347476247,1735851051264,-536.97,0.00021369,3]
[347476248,1735851051273,-500.0,0.00021369,3]
[347476249,1735851051283,-14335.29,0.00021369,3]
[347476250,1735851051292,-1213.81,0.00021369,3]
[347476251,1735851051303,-151.0,0.00021369,2]
[347476252,1735851051313,-151.0,0.00021369,2]
[347476253,1735851051322,-3453.29,0.00021369,3]
[347476254,1735851051331,-795.087862,0.00021369,2]
[347476255,1735851051341,-795.087862,0.00021369,2]
[347476256,1735851051352,-683.2,0.00021369,3]
[347476257,1735851051361,-1552.34,0.00021369,3]
[347476258,1735851051371,-633.84,0.00021369,3]
[347476259,1735851051380,-500.0,0.00021369,3]
[347476260,1735851051389,-500.0,0.00021369,3]
[347476261,1735851051398,-1157.271128,0.00021369,2]
[347476262,1735851051407,-1157.271128,0.00021369,2]
[347476263,1735851051417,-548.78,0.00021369,3]
[347476264,1735851051513,-631.51,0.00021369,2]
[347476265,1735851051523,-967.16,0.00021369,3]
[347476266,1735851051533,-2884.33,0.00021369,3]
[347476267,1735851051543,-643.02,0.00021369,3]
[347476268,1735851051552,-500.0,0.00021369,3]
[347476269,1735851051562,-170.502654,0.00021369,2]
[347476270,1735851051574,-500.0,0.00021369,3]
[347476271,1735851051583,-566.68,0.00021369,3]
[347476272,1735851051592,-1039.17,0.00021369,3]
[347476273,1735851051601,-500.0,0.00021369,3]
[347476274,1735851051611,-3385.58,0.00021369,3]
[347476275,1735851051620,-1666.93,0.00021369,3]
[347476276,1735851051629,-500.0,0.00021369,3]
[347476277,1735851051639,-1173.72,0.00021369,3]
[347476278,1735851051650,-151.0,0.00021369,2]
[347476279,1735851051659,-513.23,0.00021369,3]
[347476280,1735851051668,-151.0,0.00021369,2]
[347476281,1735851051678,-2064.1,0.00021369,3]
[347476282,1735851051687,-500.0,0.00021369,3]
[347476283,1735851051696,-500.0,0.00021369,3]
[347476284,1735851051705,-170.26107578,0.00021421,2]
[347476285,1735851051715,-7372.5684906,0.00021452,2]
[347476286,1735851051724,-151.0,0.00021479,2]
[347476287,1735851051733,-151.0,0.00021479,2]
[347476288,1735851051745,-2290.830262,0.00021479,2]
[347476289,1735851051754,-2290.830262,0.00021479,2]
[347476290,1735851051763,-1441.47313,0.00021479,2]
[347476291,1735851051772,-1441.47313,0.00021479,2]
[347476292,1735851051781,-257.717704,0.00021479,2]
[347476293,1735851051790,-257.717704,0.00021479,2]
[347476294,1735851051800,-151.0,0.00021479,2]
[347476295,1735851051809,-566.016629,0.00021479,2]
[347476296,1735851051818,-566.016629,0.00021479,2]
[347476297,1735851051827,-180.396715,0.00021479,2]
[347476298,1735851051837,-5300.0,0.000215,2]
[347476299,1735851051846,-180.293254,0.000215,2]
[347476300,1735851051855,-180.293254,0.000215,2]
[347476301,1735851051865,-151.0,0.000215,2]
[347476302,1735851051874,-151.0,0.000215,2]
[347476303,1735851051883,-151.0,0.000215,4]